[Event "Titled Tuesday Blitz October 18 Late 2022"]
[White "Joubert, Dantelle"]
[Black "De Souza, Cristiano Gomes"]
[WhiteFideId "14310813"]
[BlackFideId "2151758"]
[WhiteElo "1507"]
[BlackElo "2068"]
[Result "1/2-1/2"]
[Round "10"]
[TimeControl "180+1"]
[Date "2022.10.19"]
[WhiteClock "0:00:21"]
[BlackClock "0:00:44"]

1. d4 {[%clk 0:02:52]}  Nf6 {[%clk 0:02:55]} 2. c4 {[%clk 0:02:51]}  g6 {[%clk 0:02:55]} 3. Nc3 {[%clk 0:02:50]}  d6 {[%clk 0:02:55]} 4. e4 {[%clk 0:02:50]}  Bg7 {[%clk 0:02:54]} 5. Nf3 {[%clk 0:02:50]}  O-O {[%clk 0:02:53]} 6. Be2 {[%clk 0:02:50]}  e5 {[%clk 0:02:51]} 7. dxe5 {[%clk 0:02:48]}  dxe5 {[%clk 0:02:50]} 8. Qxd8 {[%clk 0:02:46]}  Rxd8 {[%clk 0:02:49]} 9. Bg5 {[%clk 0:02:46]}  Re8 {[%clk 0:02:50]} 10. Nd5 {[%clk 0:02:45]}  Nxd5 {[%clk 0:02:48]} 11. cxd5 {[%clk 0:02:45]}  c6 {[%clk 0:02:45]} 12. Bc4 {[%clk 0:02:44]}  b5 {[%clk 0:02:45]} 13. Bb3 {[%clk 0:02:43]}  a5 {[%clk 0:02:46]} 14. a4 {[%clk 0:02:42]}  Bb7 {[%clk 0:02:31]} 15. axb5 {[%clk 0:02:26]}  cxd5 {[%clk 0:02:29]} 16. exd5 {[%clk 0:02:16]}  e4 {[%clk 0:02:28]} 17. Nd2 {[%clk 0:02:05]}  Bxb2 {[%clk 0:02:26]} 18. Rb1 {[%clk 0:02:04]}  Bc3 {[%clk 0:02:26]} 19. O-O {[%clk 0:02:03]}  Nd7 {[%clk 0:02:26]} 20. Nc4 {[%clk 0:01:42]}  Bxd5 {[%clk 0:02:18]} 21. Rfd1 {[%clk 0:01:40]}  Bxc4 {[%clk 0:02:09]} 22. Bxc4 {[%clk 0:01:27]}  Nb6 {[%clk 0:02:08]} 23. Ba2 {[%clk 0:01:22]}  Kg7 {[%clk 0:02:04]} 24. Be3 {[%clk 0:01:17]}  Rab8 {[%clk 0:01:56]} 25. Rd6 {[%clk 0:01:13]}  Nc8 {[%clk 0:01:51]} 26. Rd7 {[%clk 0:01:12]}  Ne7 {[%clk 0:01:47]} 27. b6 {[%clk 0:00:59]}  Bb4 {[%clk 0:01:40]} 28. Rc1 {[%clk 0:00:41]}  Red8 {[%clk 0:01:37]} 29. Rcc7 {[%clk 0:00:35]}  Rxd7 {[%clk 0:01:36]} 30. Rxd7 {[%clk 0:00:34]}  Kf8 {[%clk 0:01:31]} 31. Bb3 {[%clk 0:00:28]}  Ke8 {[%clk 0:00:59]} 32. Ba4 {[%clk 0:00:27]}  Kf8 {[%clk 0:00:50]} 33. Bb3 {[%clk 0:00:25]}  Ke8 {[%clk 0:00:49]} 34. Ba4 {[%clk 0:00:23]}  Kf8 {[%clk 0:00:48]} 35. Bh6+ {[%clk 0:00:23]}  Kg8 {[%clk 0:00:47]} 36. Be3 {[%clk 0:00:21]}  Kf8 {[%clk 0:00:44]} 1/2-1/2


[Site "https://www.chess.com"]

[Event "Titled Tuesday Blitz October 18 Late 2022"]
[White "Kaganskiy, Gleb"]
[Black "Drost, Peter"]
[WhiteFideId "4132025"]
[BlackFideId "1017896"]
[WhiteElo "2165"]
[BlackElo "2382"]
[Result "0-1"]
[Round "10"]
[TimeControl "180+1"]
[Date "2022.10.19"]
[WhiteClock "0:02:06"]
[BlackClock "0:02:20"]

1. e4 {[%clk 0:02:58]}  c5 {[%clk 0:02:59]} 2. Nf3 {[%clk 0:02:57]}  d6 {[%clk 0:02:57]} 3. Nc3 {[%clk 0:02:54]}  Nf6 {[%clk 0:02:57]} 4. e5 {[%clk 0:02:55]}  dxe5 {[%clk 0:02:57]} 5. Nxe5 {[%clk 0:02:56]}  e6 {[%clk 0:02:44]} 6. Bb5+ {[%clk 0:02:54]}  Bd7 {[%clk 0:02:29]} 7. d4 {[%clk 0:02:52]}  Bxb5 {[%clk 0:02:25]} 8. Nxb5 {[%clk 0:02:52]}  a6 {[%clk 0:02:25]} 9. Nc3 {[%clk 0:02:35]}  cxd4 {[%clk 0:02:25]} 10. Qf3 {[%clk 0:02:16]}  dxc3 {[%clk 0:02:21]} 11. Qxb7 {[%clk 0:02:16]}  Nbd7 {[%clk 0:02:20]} 12. Nxd7 {[%clk 0:02:09]}  Nxd7 {[%clk 0:02:21]} 13. Bg5 {[%clk 0:02:06]}  Qc8 {[%clk 0:02:20]} 0-1


[Site "https://www.chess.com"]

[Event "Titled Tuesday Blitz October 18 Late 2022"]
[White "Kirillov, Dmitry"]
[Black "Hoffmann, Asa"]
[WhiteFideId "34180572"]
[BlackFideId "2001470"]
[WhiteElo "2095"]
[BlackElo "2117"]
[Result "0-1"]
[Round "10"]
[TimeControl "180+1"]
[Date "2022.10.19"]
[WhiteClock "0:00:14"]
[BlackClock "0:01:01"]

1. e4 {[%clk 0:03:00]}  d6 {[%clk 0:02:58]} 2. d4 {[%clk 0:03:00]}  Nf6 {[%clk 0:02:58]} 3. Nc3 {[%clk 0:03:01]}  c6 {[%clk 0:02:57]} 4. Nf3 {[%clk 0:03:01]}  Bg4 {[%clk 0:02:56]} 5. Be2 {[%clk 0:03:00]}  e6 {[%clk 0:02:51]} 6. O-O {[%clk 0:03:00]}  d5 {[%clk 0:02:47]} 7. e5 {[%clk 0:02:52]}  Nfd7 {[%clk 0:02:46]} 8. Ng5 {[%clk 0:02:53]}  Bf5 {[%clk 0:02:39]} 9. Bd3 {[%clk 0:02:51]}  Bg6 {[%clk 0:02:37]} 10. Qf3 {[%clk 0:02:47]}  Qe7 {[%clk 0:02:36]} 11. Ne2 {[%clk 0:02:43]}  Bxd3 {[%clk 0:02:33]} 12. Qxd3 {[%clk 0:02:42]}  h6 {[%clk 0:02:33]} 13. Nf3 {[%clk 0:02:38]}  c5 {[%clk 0:02:32]} 14. c3 {[%clk 0:02:39]}  Nc6 {[%clk 0:02:32]} 15. Be3 {[%clk 0:02:39]}  g6 {[%clk 0:02:30]} 16. Ne1 {[%clk 0:02:37]}  Bg7 {[%clk 0:02:28]} 17. f4 {[%clk 0:02:38]}  O-O {[%clk 0:02:26]} 18. Nf3 {[%clk 0:02:38]}  Rac8 {[%clk 0:02:20]} 19. Qb5 {[%clk 0:02:34]}  b6 {[%clk 0:02:18]} 20. Qd3 {[%clk 0:02:26]}  c4 {[%clk 0:02:14]} 21. Qd2 {[%clk 0:02:25]}  b5 {[%clk 0:02:14]} 22. f5 {[%clk 0:02:22]}  exf5 {[%clk 0:02:12]} 23. Bxh6 {[%clk 0:02:22]}  b4 {[%clk 0:02:11]} 24. Bxg7 {[%clk 0:02:15]}  Kxg7 {[%clk 0:02:10]} 25. Nf4 {[%clk 0:02:16]}  Nb6 {[%clk 0:01:57]} 26. Rae1 {[%clk 0:02:06]}  Nd8 {[%clk 0:01:56]} 27. e6 {[%clk 0:01:34]}  Nxe6 {[%clk 0:01:55]} 28. Nxe6+ {[%clk 0:01:25]}  fxe6 {[%clk 0:01:54]} 29. Ng5 {[%clk 0:01:21]}  Rf6 {[%clk 0:01:51]} 30. Re5 {[%clk 0:01:12]}  Nd7 {[%clk 0:01:50]} 31. Re2 {[%clk 0:01:08]}  bxc3 {[%clk 0:01:49]} 32. bxc3 {[%clk 0:01:06]}  Rc6 {[%clk 0:01:48]} 33. Rfe1 {[%clk 0:01:04]}  f4 {[%clk 0:01:46]} 34. g3 {[%clk 0:00:31]}  fxg3 {[%clk 0:01:34]} 35. hxg3 {[%clk 0:00:31]}  Nf8 {[%clk 0:01:34]} 36. Re5 {[%clk 0:00:27]}  Rf5 {[%clk 0:01:29]} 37. g4 {[%clk 0:00:16]}  Rxe5 {[%clk 0:01:26]} 38. Rxe5 {[%clk 0:00:17]}  Qf6 {[%clk 0:01:25]} 39. Re1 {[%clk 0:00:15]}  Nh7 {[%clk 0:01:19]} 40. Nxh7 {[%clk 0:00:09]}  Kxh7 {[%clk 0:01:18]} 41. Rf1 {[%clk 0:00:10]}  Qe7 {[%clk 0:01:18]} 42. Qf4 {[%clk 0:00:06]}  Kg7 {[%clk 0:01:16]} 43. Qe5+ {[%clk 0:00:06]}  Kg8 {[%clk 0:01:16]} 44. g5 {[%clk 0:00:04]}  Rc7 {[%clk 0:01:13]} 45. Rf6 {[%clk 0:00:03]}  Kh7 {[%clk 0:01:09]} 46. Rxe6 {[%clk 0:00:03]}  Qg7 {[%clk 0:01:08]} 47. Rf6 {[%clk 0:00:03]}  Re7 {[%clk 0:01:08]} 48. Qh2+ {[%clk 0:00:03]}  Kg8 {[%clk 0:01:08]} 49. Qb8+ {[%clk 0:00:03]}  Kh7 {[%clk 0:01:08]} 50. Qh2+ {[%clk 0:00:04]}  Kg8 {[%clk 0:01:08]} 51. Qf2 {[%clk 0:00:02]}  Rf7 {[%clk 0:01:07]} 52. Rxf7 {[%clk 0:00:02]}  Qxf7 {[%clk 0:01:07]} 53. Qxf7+ {[%clk 0:00:02]}  Kxf7 {[%clk 0:01:07]} 54. Kf2 {[%clk 0:00:03]}  Ke6 {[%clk 0:01:07]} 55. Kg3 {[%clk 0:00:03]}  Kf5 {[%clk 0:01:07]} 56. Kh4 {[%clk 0:00:03]}  Kf4 {[%clk 0:01:07]} 57. a3 {[%clk 0:00:03]}  Kf5 {[%clk 0:01:02]} 58. a4 {[%clk 0:00:02]}  Kf4 {[%clk 0:01:02]} 59. a5 {[%clk 0:00:03]}  Kf5 {[%clk 0:01:02]} 60. a6 {[%clk 0:00:04]}  Kf4 {[%clk 0:01:02]} 61. Kh3 {[%clk 0:00:05]}  Kxg5 {[%clk 0:01:02]} 62. Kg3 {[%clk 0:00:05]}  Kf5 {[%clk 0:01:02]} 63. Kf3 {[%clk 0:00:06]}  g5 {[%clk 0:01:02]} 64. Kg3 {[%clk 0:00:07]}  Ke4 {[%clk 0:01:02]} 65. Kg2 {[%clk 0:00:08]}  Kd3 {[%clk 0:01:03]} 66. Kf2 {[%clk 0:00:09]}  Kxc3 {[%clk 0:01:03]} 67. Kg1 {[%clk 0:00:10]}  Kxd4 {[%clk 0:01:03]} 68. Kg2 {[%clk 0:00:11]}  c3 {[%clk 0:01:03]} 69. Kg3 {[%clk 0:00:12]}  c2 {[%clk 0:01:03]} 70. Kg2 {[%clk 0:00:13]}  c1=Q {[%clk 0:01:03]} 71. Kg3 {[%clk 0:00:13]}  Qf4+ {[%clk 0:01:02]} 72. Kg2 {[%clk 0:00:13]}  Ke3 {[%clk 0:01:02]} 73. Kh1 {[%clk 0:00:13]}  Qg4 {[%clk 0:01:01]} 74. Kh2 {[%clk 0:00:14]}  Kf2 {[%clk 0:01:01]} 0-1


[Site "https://www.chess.com"]

[Event "Titled Tuesday Blitz October 18 Late 2022"]
[White "Kowalysko, Roman"]
[Black "Winkels, Marcel"]
[WhiteFideId "30918510"]
[BlackFideId "1003887"]
[WhiteElo "2144"]
[BlackElo "1900"]
[Result "1-0"]
[Round "10"]
[TimeControl "180+1"]
[Date "2022.10.19"]
[WhiteClock "0:01:29"]
[BlackClock "0:01:01"]

1. e4 {[%clk 0:03:00]}  c5 {[%clk 0:02:59]} 2. Nf3 {[%clk 0:02:59]}  d6 {[%clk 0:02:59]} 3. d4 {[%clk 0:02:58]}  cxd4 {[%clk 0:03:00]} 4. Nxd4 {[%clk 0:02:58]}  Nf6 {[%clk 0:03:01]} 5. Nc3 {[%clk 0:02:58]}  a6 {[%clk 0:03:01]} 6. Bg5 {[%clk 0:02:58]}  e6 {[%clk 0:03:01]} 7. f4 {[%clk 0:02:58]}  Be7 {[%clk 0:03:01]} 8. Qf3 {[%clk 0:02:58]}  Qc7 {[%clk 0:03:01]} 9. O-O-O {[%clk 0:02:58]}  Nbd7 {[%clk 0:03:01]} 10. Qg3 {[%clk 0:02:58]}  b5 {[%clk 0:02:50]} 11. Bxf6 {[%clk 0:02:57]}  Bxf6 {[%clk 0:02:50]} 12. Bxb5 {[%clk 0:02:55]}  axb5 {[%clk 0:02:39]} 13. Ndxb5 {[%clk 0:02:56]}  Qb8 {[%clk 0:02:36]} 14. Nxd6+ {[%clk 0:02:56]}  Ke7 {[%clk 0:02:35]} 15. e5 {[%clk 0:02:55]}  Ba6 {[%clk 0:02:03]} 16. exf6+ {[%clk 0:02:51]}  gxf6 {[%clk 0:02:02]} 17. Rhe1 {[%clk 0:02:43]}  Rg8 {[%clk 0:01:57]} 18. Qh3 {[%clk 0:01:47]}  Qb4 {[%clk 0:01:44]} 19. Rxe6+ {[%clk 0:01:40]}  Kf8 {[%clk 0:01:12]} 20. Qh6+ {[%clk 0:01:37]}  Rg7 {[%clk 0:01:11]} 21. Re4 {[%clk 0:01:30]}  Qb6 {[%clk 0:01:01]} 22. Nf5 {[%clk 0:01:29]} 1-0


[Site "https://www.chess.com"]

[Event "Titled Tuesday Blitz October 18 Late 2022"]
[White "Lima, Endson Dos Santos"]
[Black "Gonzalez, Francisco Silva"]
[WhiteFideId "2133199"]
[BlackFideId "1512285"]
[WhiteElo "1953"]
[BlackElo "2159"]
[Result "1-0"]
[Round "10"]
[TimeControl "180+1"]
[Date "2022.10.19"]
[WhiteClock "0:00:12"]
[BlackClock "0:00:57"]

1. d4 {[%clk 0:03:00]}  Nf6 {[%clk 0:02:58]} 2. Nf3 {[%clk 0:02:59]}  d5 {[%clk 0:02:58]} 3. c4 {[%clk 0:02:59]}  e6 {[%clk 0:02:58]} 4. g3 {[%clk 0:02:59]}  dxc4 {[%clk 0:02:57]} 5. Bg2 {[%clk 0:03:00]}  Nc6 {[%clk 0:02:57]} 6. O-O {[%clk 0:02:59]}  Rb8 {[%clk 0:02:56]} 7. Nbd2 {[%clk 0:02:58]}  Nxd4 {[%clk 0:02:55]} 8. Nxd4 {[%clk 0:02:56]}  Qxd4 {[%clk 0:02:55]} 9. Qc2 {[%clk 0:02:57]}  b5 {[%clk 0:02:52]} 10. a4 {[%clk 0:02:56]}  a6 {[%clk 0:02:48]} 11. Nf3 {[%clk 0:02:54]}  Qe4 {[%clk 0:02:47]} 12. Qxe4 {[%clk 0:02:47]}  Nxe4 {[%clk 0:02:47]} 13. Ne5 {[%clk 0:02:48]}  f5 {[%clk 0:02:45]} 14. axb5 {[%clk 0:02:40]}  Rxb5 {[%clk 0:02:43]} 15. Nxc4 {[%clk 0:02:37]}  Bc5 {[%clk 0:02:39]} 16. Be3 {[%clk 0:02:15]}  O-O {[%clk 0:02:38]} 17. Bxe4 {[%clk 0:02:12]}  fxe4 {[%clk 0:02:34]} 18. Bxc5 {[%clk 0:02:10]}  Rxc5 {[%clk 0:02:34]} 19. Rfc1 {[%clk 0:02:07]}  e5 {[%clk 0:02:34]} 20. Ne3 {[%clk 0:01:54]}  Rb5 {[%clk 0:02:31]} 21. Rab1 {[%clk 0:01:43]}  Rf7 {[%clk 0:02:27]} 22. Rc4 {[%clk 0:01:38]}  Bb7 {[%clk 0:02:22]} 23. Rc2 {[%clk 0:01:23]}  h5 {[%clk 0:02:20]} 24. h4 {[%clk 0:01:22]}  Rd7 {[%clk 0:02:18]} 25. Rbc1 {[%clk 0:01:20]}  c6 {[%clk 0:02:11]} 26. Rd1 {[%clk 0:00:52]}  Rd4 {[%clk 0:02:08]} 27. Rdd2 {[%clk 0:00:45]}  g6 {[%clk 0:02:03]} 28. Nc4 {[%clk 0:00:39]}  Rxd2 {[%clk 0:01:48]} 29. Rxd2 {[%clk 0:00:40]}  Rd5 {[%clk 0:01:46]} 30. Rxd5 {[%clk 0:00:39]}  cxd5 {[%clk 0:01:45]} 31. Nxe5 {[%clk 0:00:40]}  Kg7 {[%clk 0:01:42]} 32. Nd7 {[%clk 0:00:39]}  d4 {[%clk 0:01:39]} 33. e3 {[%clk 0:00:30]}  d3 {[%clk 0:01:37]} 34. Kf1 {[%clk 0:00:30]}  a5 {[%clk 0:01:37]} 35. Ke1 {[%clk 0:00:30]}  Bc6 {[%clk 0:01:34]} 36. Nc5 {[%clk 0:00:29]}  Kf6 {[%clk 0:01:31]} 37. f3 {[%clk 0:00:25]}  Kf5 {[%clk 0:01:25]} 38. fxe4+ {[%clk 0:00:15]}  Bxe4 {[%clk 0:01:24]} 39. Kd2 {[%clk 0:00:14]}  a4 {[%clk 0:01:16]} 40. Nxd3 {[%clk 0:00:14]}  Bxd3 {[%clk 0:01:15]} 41. Kxd3 {[%clk 0:00:15]}  g5 {[%clk 0:01:14]} 42. hxg5 {[%clk 0:00:14]}  Kxg5 {[%clk 0:01:14]} 43. e4 {[%clk 0:00:14]}  Kg4 {[%clk 0:01:04]} 44. e5 {[%clk 0:00:13]}  Kxg3 {[%clk 0:01:04]} 45. e6 {[%clk 0:00:13]}  h4 {[%clk 0:01:05]} 46. e7 {[%clk 0:00:13]}  h3 {[%clk 0:01:06]} 47. e8=Q {[%clk 0:00:14]}  h2 {[%clk 0:01:06]} 48. Qg6+ {[%clk 0:00:13]}  Kf2 {[%clk 0:01:05]} 49. Qh5 {[%clk 0:00:11]}  Kg2 {[%clk 0:01:03]} 50. Qg4+ {[%clk 0:00:11]}  Kh1 {[%clk 0:01:00]} 51. Ke2 {[%clk 0:00:10]}  a3 {[%clk 0:00:57]} 52. Kf2 {[%clk 0:00:11]}  a2 {[%clk 0:00:57]} 53. Qg2# {[%clk 0:00:12]} 1-0


[Site "https://www.chess.com"]

[Event "Titled Tuesday Blitz October 18 Late 2022"]
[White "Madaminov, Mukhiddin"]
[Black "Goltsev, Dmitry"]
[WhiteFideId "14210703"]
[BlackFideId "24176710"]
[WhiteElo "2341"]
[BlackElo "2257"]
[Result "1-0"]
[Round "10"]
[TimeControl "180+1"]
[Date "2022.10.18"]
[WhiteClock "0:01:50"]
[BlackClock "0:02:03"]

1. d4 {[%clk 0:03:00]}  Nf6 {[%clk 0:03:00]} 2. Nc3 {[%clk 0:02:56]}  e6 {[%clk 0:02:59]} 3. Bf4 {[%clk 0:02:52]}  d5 {[%clk 0:02:59]} 4. Nb5 {[%clk 0:02:50]}  Bd6 {[%clk 0:02:58]} 5. Nxd6+ {[%clk 0:02:49]}  cxd6 {[%clk 0:02:59]} 6. c3 {[%clk 0:02:50]}  Nc6 {[%clk 0:02:58]} 7. e3 {[%clk 0:02:50]}  e5 {[%clk 0:02:58]} 8. Bg3 {[%clk 0:02:49]}  Be6 {[%clk 0:02:54]} 9. Nf3 {[%clk 0:02:48]}  Ne4 {[%clk 0:02:52]} 10. Be2 {[%clk 0:02:46]}  Nxg3 {[%clk 0:02:50]} 11. hxg3 {[%clk 0:02:45]}  h6 {[%clk 0:02:49]} 12. Qb3 {[%clk 0:02:43]}  Qb6 {[%clk 0:02:49]} 13. Kd2 {[%clk 0:02:28]}  O-O {[%clk 0:02:47]} 14. Rhc1 {[%clk 0:02:15]}  Rac8 {[%clk 0:02:43]} 15. Qxb6 {[%clk 0:02:13]}  axb6 {[%clk 0:02:44]} 16. b3 {[%clk 0:02:13]}  e4 {[%clk 0:02:44]} 17. Ne1 {[%clk 0:02:12]}  f5 {[%clk 0:02:43]} 18. Nc2 {[%clk 0:02:11]}  Rc7 {[%clk 0:02:43]} 19. Nb4 {[%clk 0:02:02]}  Nxb4 {[%clk 0:02:42]} 20. cxb4 {[%clk 0:02:03]}  Rfc8 {[%clk 0:02:42]} 21. Rxc7 {[%clk 0:02:03]}  Rxc7 {[%clk 0:02:43]} 22. a4 {[%clk 0:02:03]}  Kf7 {[%clk 0:02:37]} 23. a5 {[%clk 0:02:02]}  bxa5 {[%clk 0:02:38]} 24. bxa5 {[%clk 0:02:02]}  Bc8 {[%clk 0:02:38]} 25. b4 {[%clk 0:02:02]}  Ke6 {[%clk 0:02:38]} 26. b5 {[%clk 0:02:02]}  g5 {[%clk 0:02:36]} 27. a6 {[%clk 0:01:55]}  bxa6 {[%clk 0:02:37]} 28. bxa6 {[%clk 0:01:56]}  Ra7 {[%clk 0:02:37]} 29. Kc3 {[%clk 0:01:56]}  Kd7 {[%clk 0:02:37]} 30. Kb4 {[%clk 0:01:57]}  Kc7 {[%clk 0:02:34]} 31. Ka5 {[%clk 0:01:56]}  Kb8 {[%clk 0:02:26]} 32. Kb6 {[%clk 0:01:54]}  Rh7 {[%clk 0:02:19]} 33. Bb5 {[%clk 0:01:53]}  Bb7 {[%clk 0:02:01]} 34. axb7 {[%clk 0:01:48]}  Rxb7+ {[%clk 0:02:02]} 35. Kc6 {[%clk 0:01:49]}  Rc7+ {[%clk 0:02:02]} 36. Kxd6 {[%clk 0:01:49]}  Rc2 {[%clk 0:02:03]} 37. Bc6 {[%clk 0:01:50]} 1-0


[Site "https://www.chess.com"]

[Event "Titled Tuesday Blitz October 18 Late 2022"]
[White "Manukian, Artak"]
[Black "Rustemov, Alexander"]
[WhiteFideId "13301373"]
[BlackFideId "4119002"]
[WhiteElo "2499"]
[BlackElo "2758"]
[Result "0-1"]
[Round "10"]
[TimeControl "180+1"]
[Date "2022.10.18"]
[WhiteClock "0:01:31"]
[BlackClock "0:02:07"]

1. e4 {[%clk 0:03:00]}  e6 {[%clk 0:03:00]} 2. d3 {[%clk 0:03:01]}  c5 {[%clk 0:02:59]} 3. g3 {[%clk 0:03:00]}  Nc6 {[%clk 0:02:59]} 4. Bg2 {[%clk 0:03:00]}  g6 {[%clk 0:03:00]} 5. Ne2 {[%clk 0:03:00]}  Bg7 {[%clk 0:03:00]} 6. f4 {[%clk 0:03:00]}  Nge7 {[%clk 0:03:00]} 7. O-O {[%clk 0:03:01]}  O-O {[%clk 0:03:00]} 8. Nd2 {[%clk 0:03:01]}  d6 {[%clk 0:02:59]} 9. Nf3 {[%clk 0:03:01]}  f5 {[%clk 0:02:55]} 10. h4 {[%clk 0:02:58]}  h6 {[%clk 0:02:53]} 11. c3 {[%clk 0:02:55]}  b6 {[%clk 0:02:52]} 12. Be3 {[%clk 0:02:50]}  Bb7 {[%clk 0:02:50]} 13. Qc2 {[%clk 0:02:49]}  Qd7 {[%clk 0:02:49]} 14. Rad1 {[%clk 0:02:48]}  Rae8 {[%clk 0:02:47]} 15. Rfe1 {[%clk 0:02:47]}  Kh7 {[%clk 0:02:45]} 16. a3 {[%clk 0:02:45]}  Ng8 {[%clk 0:02:43]} 17. h5 {[%clk 0:02:40]}  gxh5 {[%clk 0:02:41]} 18. Nh4 {[%clk 0:02:40]}  Nf6 {[%clk 0:02:39]} 19. d4 {[%clk 0:02:29]}  Ne7 {[%clk 0:02:31]} 20. exf5 {[%clk 0:02:06]}  Nxf5 {[%clk 0:02:31]} 21. Bxb7 {[%clk 0:01:55]}  Qxb7 {[%clk 0:02:28]} 22. Nxf5 {[%clk 0:01:56]}  exf5 {[%clk 0:02:28]} 23. Qxf5+ {[%clk 0:01:56]}  Kh8 {[%clk 0:02:24]} 24. Bf2 {[%clk 0:01:48]}  Qf3 {[%clk 0:02:19]} 25. Nc1 {[%clk 0:01:37]}  Ne4 {[%clk 0:02:12]} 26. Rxe4 {[%clk 0:01:31]}  Qxd1+ {[%clk 0:02:07]} 0-1


[Site "https://www.chess.com"]

[Event "Titled Tuesday Blitz October 18 Late 2022"]
[White "Noboa Silva, Kevin"]
[Black "Rangel, Daniel"]
[WhiteFideId "3618471"]
[BlackFideId "2124475"]
[WhiteElo "2178"]
[BlackElo "2225"]
[Result "1/2-1/2"]
[Round "10"]
[TimeControl "180+1"]
[Date "2022.10.19"]
[WhiteClock "0:00:21"]
[BlackClock "0:00:03"]

1. d4 {[%clk 0:03:00]}  Nf6 {[%clk 0:02:59]} 2. c4 {[%clk 0:03:01]}  e6 {[%clk 0:02:59]} 3. Nc3 {[%clk 0:03:01]}  d5 {[%clk 0:03:00]} 4. cxd5 {[%clk 0:03:01]}  exd5 {[%clk 0:03:00]} 5. Bg5 {[%clk 0:03:01]}  c6 {[%clk 0:03:00]} 6. e3 {[%clk 0:03:02]}  Be6 {[%clk 0:03:00]} 7. Bd3 {[%clk 0:03:02]}  Bd6 {[%clk 0:03:01]} 8. Nge2 {[%clk 0:03:02]}  Nbd7 {[%clk 0:03:01]} 9. Qc2 {[%clk 0:03:03]}  a6 {[%clk 0:02:59]} 10. Nf4 {[%clk 0:02:54]}  Bxf4 {[%clk 0:02:44]} 11. Bxf4 {[%clk 0:02:52]}  O-O {[%clk 0:02:42]} 12. h3 {[%clk 0:02:51]}  c5 {[%clk 0:02:39]} 13. dxc5 {[%clk 0:02:51]}  Nxc5 {[%clk 0:02:40]} 14. O-O {[%clk 0:02:49]}  Nxd3 {[%clk 0:02:28]} 15. Qxd3 {[%clk 0:02:48]}  h6 {[%clk 0:02:26]} 16. Be5 {[%clk 0:02:46]}  Nd7 {[%clk 0:02:17]} 17. Bd4 {[%clk 0:02:46]}  Qg5 {[%clk 0:02:13]} 18. Kh1 {[%clk 0:02:43]}  Rac8 {[%clk 0:02:11]} 19. Rfd1 {[%clk 0:02:41]}  Rc6 {[%clk 0:01:57]} 20. Ne2 {[%clk 0:02:33]}  Ne5 {[%clk 0:01:42]} 21. Bxe5 {[%clk 0:02:27]}  Qxe5 {[%clk 0:01:43]} 22. Qd4 {[%clk 0:02:23]}  Qxd4 {[%clk 0:01:38]} 23. Nxd4 {[%clk 0:02:22]}  Rc7 {[%clk 0:01:37]} 24. Rd2 {[%clk 0:02:22]}  Rfc8 {[%clk 0:01:36]} 25. Rad1 {[%clk 0:02:22]}  Rc1 {[%clk 0:01:35]} 26. Kh2 {[%clk 0:02:19]}  Kf8 {[%clk 0:01:31]} 27. Rxc1 {[%clk 0:02:17]}  Rxc1 {[%clk 0:01:30]} 28. Ne2 {[%clk 0:02:17]}  Rc5 {[%clk 0:01:24]} 29. Kg3 {[%clk 0:02:10]}  Ke7 {[%clk 0:01:21]} 30. Nd4 {[%clk 0:02:08]}  g6 {[%clk 0:01:09]} 31. h4 {[%clk 0:01:55]}  h5 {[%clk 0:01:08]} 32. Kf4 {[%clk 0:01:55]}  Kf6 {[%clk 0:01:01]} 33. a3 {[%clk 0:01:54]}  Rc4 {[%clk 0:00:55]} 34. Rc2 {[%clk 0:01:53]}  b5 {[%clk 0:00:51]} 35. b3 {[%clk 0:01:51]}  Rxc2 {[%clk 0:00:49]} 36. Nxc2 {[%clk 0:01:52]}  Ke7 {[%clk 0:00:45]} 37. b4 {[%clk 0:01:52]}  f6 {[%clk 0:00:38]} 38. Nd4 {[%clk 0:01:50]}  Bc8 {[%clk 0:00:26]} 39. f3 {[%clk 0:01:48]}  Kd6 {[%clk 0:00:24]} 40. g4 {[%clk 0:01:47]}  hxg4 {[%clk 0:00:21]} 41. fxg4 {[%clk 0:01:47]}  Ke7 {[%clk 0:00:20]} 42. Nb3 {[%clk 0:01:43]}  Kf7 {[%clk 0:00:19]} 43. Nc5 {[%clk 0:01:31]}  Kg7 {[%clk 0:00:18]} 44. g5 {[%clk 0:01:31]}  Kf7 {[%clk 0:00:14]} 45. Kf3 {[%clk 0:01:27]}  Ke7 {[%clk 0:00:13]} 46. Ke2 {[%clk 0:01:27]}  fxg5 {[%clk 0:00:13]} 47. hxg5 {[%clk 0:01:27]}  Kd6 {[%clk 0:00:14]} 48. Nd3 {[%clk 0:01:23]}  Ke6 {[%clk 0:00:13]} 49. Nf4+ {[%clk 0:01:19]}  Kf5 {[%clk 0:00:13]} 50. Nxd5 {[%clk 0:01:19]}  Kxg5 {[%clk 0:00:14]} 51. e4 {[%clk 0:01:14]}  Bb7 {[%clk 0:00:07]} 52. Nc3 {[%clk 0:01:01]}  Kf4 {[%clk 0:00:07]} 53. Kd3 {[%clk 0:01:01]}  g5 {[%clk 0:00:07]} 54. Ne2+ {[%clk 0:01:02]}  Ke5 {[%clk 0:00:06]} 55. Nc3 {[%clk 0:00:52]}  g4 {[%clk 0:00:06]} 56. Ke3 {[%clk 0:00:52]}  g3 {[%clk 0:00:06]} 57. Kf3 {[%clk 0:00:52]}  Bxe4+ {[%clk 0:00:03]} 58. Kxg3 {[%clk 0:00:51]}  Kd4 {[%clk 0:00:02]} 59. Ne2+ {[%clk 0:00:51]}  Kc4 {[%clk 0:00:02]} 60. Kf4 {[%clk 0:00:46]}  Bb7 {[%clk 0:00:02]} 61. Nc1 {[%clk 0:00:39]}  Kc3 {[%clk 0:00:03]} 62. Ke3 {[%clk 0:00:39]}  Kb2 {[%clk 0:00:03]} 63. Nd3+ {[%clk 0:00:36]}  Kxa3 {[%clk 0:00:04]} 64. Kd4 {[%clk 0:00:37]}  Kb3 {[%clk 0:00:04]} 65. Kc5 {[%clk 0:00:35]}  Ka4 {[%clk 0:00:05]} 66. Kb6 {[%clk 0:00:33]}  Be4 {[%clk 0:00:05]} 67. Nc5+ {[%clk 0:00:30]}  Kxb4 {[%clk 0:00:06]} 68. Nxe4 {[%clk 0:00:29]}  Kc4 {[%clk 0:00:07]} 69. Kxa6 {[%clk 0:00:27]}  b4 {[%clk 0:00:08]} 70. Ka5 {[%clk 0:00:26]}  Kd3 {[%clk 0:00:08]} 71. Nc5+ {[%clk 0:00:25]}  Kc4 {[%clk 0:00:06]} 72. Ne4 {[%clk 0:00:23]}  b3 {[%clk 0:00:07]} 73. Ka4 {[%clk 0:00:23]}  b2 {[%clk 0:00:07]} 74. Nd2+ {[%clk 0:00:20]}  Kc3 {[%clk 0:00:07]} 75. Nb1+ {[%clk 0:00:20]}  Kc2 {[%clk 0:00:07]} 76. Na3+ {[%clk 0:00:21]}  Kc1 {[%clk 0:00:08]} 77. Kb3 {[%clk 0:00:21]}  b1=N {[%clk 0:00:03]} 1/2-1/2


[Site "https://www.chess.com"]